2CCN - Level 2 Cost Centre Name,,9CCN - Level 9 Cost Centre Name,9CCC - Level 9 Cost Centre Code,9AN - Level 9 Account Name,9AC - Level 9 Account Code,Date posted,Date of transaction,Merchant Name,Merchant City,Merchant State,Merchant Zip Code,Originating Account Name,Originating Account Number,MCC/SIC Code,MCC Description,Original Amount,Currency,Conversion Rate,Billed Amount,Account Applied To,Debit Credit,Reference Number,Statement Cycle,Account Name
Gloucester City Council,23UE,Museum of Gloucester,MU002,General Supplies/Materials,3025,11/08/2021,10/08/2021,POSTOFFICE SELFSERVICE,GLOUCESTER,,GL1 1AD,REDACTED,556*********9934,9402,POSTAGE STAMPS,1.99,Pound Sterling (826),1.000000000,1.99,Corporate,D,55504431222252122269021,02/09/2021,GLOUCESTER CITY COUNCIL
Gloucester City Council,23UE,Museum of Gloucester,MU002,Archiving,3402,12/08/2021,11/08/2021,B&M 298 - GLOUCESTER,GLOUCESTER,GBR,GL1 2DH,REDACTED,556*********9934,5399,MISCELLANEOUS GENERAL MERCHANDISE STORES,4,Pound Sterling (826),1.000000000,4,Corporate,D,05272471224910034223332,02/09/2021,GLOUCESTER CITY COUNCIL
Gloucester City Council,23UE,Shopmobility,SM001,Cleaning Services & Materials,1500,13/08/2021,12/08/2021,B&M 298 - GLOUCESTER,GLOUCESTER,GBR,GL1 2DH,REDACTED,556*********9934,5399,MISCELLANEOUS GENERAL MERCHANDISE STORES,20.45,Pound Sterling (826),1.000000000,20.45,Corporate,D,05272471225910048126637,02/09/2021,GLOUCESTER CITY COUNCIL
Gloucester City Council,23UE,Museum of Gloucester,MU002,Building Repairs and Maintenance,1001,23/08/2021,20/08/2021,POWER DISCOUNT LLP,HAILSHAM,ESX,BN27 1DW,REDACTED,556*********9934,5734,COMPUTER SOFTWARE STORES,158.4,Pound Sterling (826),1.000000000,158.4,Corporate,D,85383901232000001444634,02/09/2021,GLOUCESTER CITY COUNCIL
Gloucester City Council,23UE,Museum of Gloucester,MU002,General Supplies/Materials,3025,25/08/2021,24/08/2021,POSTOFFICE SELFSERVICE,GLOUCESTER,,GL1 1AD,REDACTED,556*********9934,9402,POSTAGE STAMPS,9.14,Pound Sterling (826),1.000000000,9.14,Corporate,D,55504431236252122919017,02/09/2021,GLOUCESTER CITY COUNCIL
Gloucester City Council,23UE,Museum of Gloucester,MU002,Building Repairs and Maintenance,1001,27/08/2021,26/08/2021,POWER DISCOUNT LLP,HAILSHAM,ESX,BN27 1DW,REDACTED,556*********9934,5734,COMPUTER SOFTWARE STORES,-63.36,Pound Sterling (826),1.000000000,-63.36,Corporate,C,85383901239000000854679,02/09/2021,GLOUCESTER CITY COUNCIL
Gloucester City Council,23UE,Gloucester Life Museum,MU005,Archiving/Materials,3402/C306,30/08/2021,27/08/2021,TIMPSON LTD,GLOUCESTER AS,,GL1 1DS,REDACTED,556*********9934,5999,MISCELLANEOUS AND RETAIL STORES,60,Pound Sterling (826),1.000000000,60,Corporate,D,55504431239025375363571,02/09/2021,GLOUCESTER CITY COUNCIL
Gloucester City Council,23UE,Countryside Unit,EP003,Operative Clothing Allowances,0502,10/08/2021,09/08/2021,eBay O*15-07446-20225,Luxembourg,LUX,2449,REDACTED,556*********6734,5311,DEPARTMENT STORES,53.6,Pound Sterling (826),1.000000000,53.6,Corporate,D,15265671221002307935853,02/09/2021,GLOUCESTER CITY COUNCIL
Gloucester City Council,23UE,Docks Complex - Services,AM006,General Supplies/Materials,3025,11/08/2021,10/08/2021,PAYPAL *999 DAY,35314369001,GBR,TW91EH,REDACTED,556*********6128,8999,PROFESSIONAL SERVICES NOT ELSEWHERE CLASSIFIED,34.99,Pound Sterling (826),1.000000000,34.99,Corporate,D,85130081222131206753369,02/09/2021,GLOUCESTER CITY COUNCIL
Gloucester City Council,23UE,Docks Complex - Services,AM006,General Supplies/Materials,3025,19/08/2021,18/08/2021,B&M 298 - GLOUCESTER,GLOUCESTER,GBR,GL1 2DH,REDACTED,556*********6128,5399,MISCELLANEOUS GENERAL MERCHANDISE STORES,16.98,Pound Sterling (826),1.000000000,16.98,Corporate,D,05272471231910038201319,02/09/2021,GLOUCESTER CITY COUNCIL
Gloucester City Council,23UE,Docks Complex - Services,AM006,Hospitality & Refreshments,3104,23/08/2021,19/08/2021,SAINSBURYS SUPERMA,GLOUCESTER QU,,GL15LY,REDACTED,556*********6128,5411,"GROCERY STORES, SUPERMARKETS",73.7,Pound Sterling (826),1.000000000,73.7,Corporate,D,85481471232331831474136,02/09/2021,GLOUCESTER CITY COUNCIL
Gloucester City Council,23UE,Docks Complex - Services,AM006,General Supplies/Materials,3025,23/08/2021,20/08/2021,B&M 298 - GLOUCESTER,GLOUCESTER,GBR,GL1 2DH,REDACTED,556*********6128,5399,MISCELLANEOUS GENERAL MERCHANDISE STORES,7.99,Pound Sterling (826),1.000000000,7.99,Corporate,D,05272471234910026088345,02/09/2021,GLOUCESTER CITY COUNCIL
Gloucester City Council,23UE,Housing Services,HS001,Advertising & Publicity,3404,30/08/2021,29/08/2021,GOOGLE ADS4453495143,Dublin,IRL,8QQ7+WG,REDACTED,556*********4234,7311,ADVERTISING SERVICES,173.11,Pound Sterling (826),1.000000000,173.11,Corporate,D,15265671241000861294945,02/09/2021,GLOUCESTER CITY COUNCIL
Gloucester City Council,23UE,Gloucester Guildhall,GH001,Professional Membership & Subscriptions,3403,04/08/2021,02/08/2021,TVLICENSING.CO.UK,3007906071,,BS1 6AB,REDACTED,556*********4253,7392,"MANAGEMENT, CONSULTING AND PUBLIC RELATIONS SERVICES",159,Pound Sterling (826),1.000000000,159,Corporate,D,85481471215327605677749,02/09/2021,GLOUCESTER CITY COUNCIL
Gloucester City Council,23UE,Gloucester Guildhall,GH001,Equipment and Furniture ,3001,04/08/2021,03/08/2021,eBay O*02-07424-75143,Luxembourg,LUX,2449,REDACTED,556*********4253,5311,DEPARTMENT STORES,6.99,Pound Sterling (826),1.000000000,6.99,Corporate,D,15265671215007357875857,02/09/2021,GLOUCESTER CITY COUNCIL
Gloucester City Council,23UE,Museum of Gloucester,MU002,Catering Provisions,3103,04/08/2021,03/08/2021,TESCO STORES 6819,GLOUCESTER,GBR,GL1 1TP,REDACTED,556*********4253,5411,"GROCERY STORES, SUPERMARKETS",2.3,Pound Sterling (826),1.000000000,2.3,Corporate,D,05130861216910009651271,02/09/2021,GLOUCESTER CITY COUNCIL
Gloucester City Council,23UE,Gloucester Guildhall,GH001,Equipment and Furniture ,3001,04/08/2021,03/08/2021,AMZNMktplace,amazon.co.uk,GBR,EC2A 2FA,REDACTED,556*********4253,5999,MISCELLANEOUS AND RETAIL STORES,24.99,Pound Sterling (826),1.000000000,24.99,Corporate,D,52692011215200127704169,02/09/2021,GLOUCESTER CITY COUNCIL
Gloucester City Council,23UE,Museum of Gloucester,MU002,Events,3070,05/08/2021,04/08/2021,WILKO RETAIL LIMITED,GLOUCESTER,GBR,GL1 1SL,REDACTED,556*********4253,5399,MISCELLANEOUS GENERAL MERCHANDISE STORES,10,Pound Sterling (826),1.000000000,10,Corporate,D,05272461217910013152734,02/09/2021,GLOUCESTER CITY COUNCIL
Gloucester City Council,23UE,Guildhall Bar and Caf�,GH005,Catering Provisions,3103,05/08/2021,04/08/2021,BOOKER LIMITED GLOUCES,GLOUCESTER,GBR,GL4 3RT,REDACTED,556*********4253,5811,CATERERS,145.65,Pound Sterling (826),1.000000000,145.65,Corporate,D,55184221216532177585482,02/09/2021,GLOUCESTER CITY COUNCIL
Gloucester City Council,23UE,Gloucester Guildhall,GH001,Equipment and Furniture ,3001,10/08/2021,09/08/2021,BURSALI TOWELS (UK) LT,PONTYPRIDD,GBR,CF37 5SP,REDACTED,556*********4253,5719,MISCELLANEOUS HOUSE FURNISHING SPECIALITY STORES,146.41,Pound Sterling (826),1.000000000,146.41,Corporate,D,05272471222910033131231,02/09/2021,GLOUCESTER CITY COUNCIL
Gloucester City Council,23UE,Museum of Gloucester,MU002,General Supplies/Materials,3025,19/08/2021,18/08/2021,POSTOFFICE SELFSERVICE,GLOUCESTER,,GL1 1AD,REDACTED,556*********4253,9402,POSTAGE STAMPS,9.35,Pound Sterling (826),1.000000000,9.35,Corporate,D,55504431230252180208861,02/09/2021,GLOUCESTER CITY COUNCIL
Gloucester City Council,23UE,Museum of Gloucester,MU002,Events,3070,19/08/2021,18/08/2021,WILKO RETAIL LIMITED,GLOUCESTER,GBR,GL1 1SL,REDACTED,556*********4253,5399,MISCELLANEOUS GENERAL MERCHANDISE STORES,15,Pound Sterling (826),1.000000000,15,Corporate,D,05272461231910013158212,02/09/2021,GLOUCESTER CITY COUNCIL
Gloucester City Council,23UE,Museum of Gloucester,MU002,Catering Provisions,3103,23/08/2021,20/08/2021,MARKS&SPENCER PLC,GLOUCESTER,GBR,GL1 1PH,REDACTED,556*********4253,5411,"GROCERY STORES, SUPERMARKETS",2.3,Pound Sterling (826),1.000000000,2.3,Corporate,D,05130861233910046401242,02/09/2021,GLOUCESTER CITY COUNCIL
Gloucester City Council,23UE,Museum of Gloucester,MU002,Mileage and Travel Allowances,2401,27/08/2021,26/08/2021,CURB,LONDON,GBR,W3 0RA,REDACTED,556*********4253,4121,TAXICABS/LIMOUSINES,30,Pound Sterling (826),1.000000000,30,Corporate,D,05272471239910033061546,02/09/2021,GLOUCESTER CITY COUNCIL
Gloucester City Council,23UE,Museum of Gloucester,MU002,Events,3070,27/08/2021,26/08/2021,WH SMITH,GLOUCESTER,GBR,GL1 1NZ,REDACTED,556*********4253,5994,NEWS DEALERS AND NEWSSTANDS,29.66,Pound Sterling (826),1.000000000,29.66,Corporate,D,05130861239910047226238,02/09/2021,GLOUCESTER CITY COUNCIL
Gloucester City Council,23UE,Museum of Gloucester,MU002,Mileage and Travel Allowances,2401,30/08/2021,27/08/2021,SumUp *Imran,Gloucester,GBR,GL4 6GE,REDACTED,556*********4253,4121,TAXICABS/LIMOUSINES,7.6,Pound Sterling (826),1.000000000,7.6,Corporate,D,05372011239344645397564,02/09/2021,GLOUCESTER CITY COUNCIL
Gloucester City Council,23UE,Public Health,PH001,Mileage and Travel Allowances,2401,12/08/2021,11/08/2021,TESCO PAY AT PUMP 3778,GLOUCESTER,GBR,GL1 2SG,REDACTED,556*********3063,5542,AUTOMATED FUEL DISPENSERS,75.46,Pound Sterling (826),1.000000000,75.46,Corporate,D,05130861224910009979730,02/09/2021,GLOUCESTER CITY COUNCIL
Gloucester City Council,23UE,Civica Admin Charges,BI002,Professional Membership & Subscriptions,3403,24/08/2021,23/08/2021,SurveyMonkey,0035315920752,IRL,4,REDACTED,556*********3063,7372,COMPUTER AND DATA PROCESSING SERVICES,384,Pound Sterling (826),1.000000000,384,Corporate,D,15265671235347903978722,02/09/2021,GLOUCESTER CITY COUNCIL
Gloucester City Council,23UE,Asset Management,AM035,Books & Publications,3401,26/08/2021,25/08/2021,ROYAL MAIL GROUP LTD,CHESTERFIELD,GBR,S49 1ZS,REDACTED,556*********3063,9402,POSTAGE STAMPS,4.02,Pound Sterling (826),1.000000000,4.02,Corporate,D,05272471238910009059269,02/09/2021,GLOUCESTER CITY COUNCIL
Gloucester City Council,23UE,Democratic Services,DS003,CRB Checks,0533,02/09/2021,01/09/2021,DISCLOSURE AND BARRING,LIVERPOOL,GBR,L3 1QY,REDACTED,556*********3063,9399,GOVERNMENT SERVICES NOT ELSEWHERE CLASSIFIED,23,Pound Sterling (826),1.000000000,23,Corporate,D,05272471245910009075480,02/09/2021,GLOUCESTER CITY COUNCIL
Gloucester City Council,23UE,Blackfriars,GH010,Advertising & Publicity,3404,03/08/2021,02/08/2021,ROCK MY WEDDING,LONDON,LND,SW13 9JJ,REDACTED,556*********1585,8699,MEMBERSHIP ORGANIZATIONS NOT ELSEWHERE CLASSIFIED,12,Pound Sterling (826),1.000000000,12,Corporate,D,85383901214000002040607,02/09/2021,GLOUCESTER CITY COUNCIL
Gloucester City Council,23UE,Gloucester Guildhall,GH001,Catering Provisions,3103,05/08/2021,04/08/2021,MARKS&SPENCER PLC,GLOUCESTER,GBR,GL1 1PH,REDACTED,556*********1585,5411,"GROCERY STORES, SUPERMARKETS",4.34,Pound Sterling (826),1.000000000,4.34,Corporate,D,05130861217910050328620,02/09/2021,GLOUCESTER CITY COUNCIL
Gloucester City Council,23UE,Guildhall Bar and Caf�,GH005,Equipment and Furniture ,3001,09/08/2021,06/08/2021,TESCO STORE 2581,GLOUCESTER,GBR,GL1 2SR,REDACTED,556*********1585,5411,"GROCERY STORES, SUPERMARKETS",11.56,Pound Sterling (826),1.000000000,11.56,Corporate,D,05130861219910016357646,02/09/2021,GLOUCESTER CITY COUNCIL
Gloucester City Council,23UE,Guildhall Bar and Caf�,GH005,Catering Provisions,3103,09/08/2021,06/08/2021,TESCO STORE 2581,GLOUCESTER,GBR,GL1 2SR,REDACTED,556*********1585,5411,"GROCERY STORES, SUPERMARKETS",35.49,Pound Sterling (826),1.000000000,35.49,Corporate,D,05130861219910016366712,02/09/2021,GLOUCESTER CITY COUNCIL
Gloucester City Council,23UE,Blackfriars,GH010,Catering Provisions,3103,09/08/2021,06/08/2021,TESCO STORE 2581,GLOUCESTER,GBR,GL1 2SR,REDACTED,556*********1585,5411,"GROCERY STORES, SUPERMARKETS",16.78,Pound Sterling (826),1.000000000,16.78,Corporate,D,05130861219910016374633,02/09/2021,GLOUCESTER CITY COUNCIL
Gloucester City Council,23UE,Guildhall Bar and Caf�,GH005,Catering Provisions,3103,09/08/2021,06/08/2021,TESCO STORES LTD 6498,GLOUCESTER,GBR,GL1 1SZ,REDACTED,556*********1585,5411,"GROCERY STORES, SUPERMARKETS",1.4,Pound Sterling (826),1.000000000,1.4,Corporate,D,05130861219910016920559,02/09/2021,GLOUCESTER CITY COUNCIL
Gloucester City Council,23UE,Guildhall Bar and Caf�,GH005,Equipment and Furniture ,3001,12/08/2021,11/08/2021,AMZNMktplace,amazon.co.uk,GBR,EC2A 2FA,REDACTED,556*********1585,5999,MISCELLANEOUS AND RETAIL STORES,47.56,Pound Sterling (826),1.000000000,47.56,Corporate,D,52692011223200337104218,02/09/2021,GLOUCESTER CITY COUNCIL
Gloucester City Council,23UE,Guildhall Bar and Caf�,GH005,Catering Provisions,3103,12/08/2021,11/08/2021,ICELAND,GLOUCESTER,GBR,GL1 1SA,REDACTED,556*********1585,5411,"GROCERY STORES, SUPERMARKETS",4.6,Pound Sterling (826),1.000000000,4.6,Corporate,D,05130861224910035365250,02/09/2021,GLOUCESTER CITY COUNCIL
Gloucester City Council,23UE,Guildhall Bar and Caf�,GH005,Catering Provisions,3103,12/08/2021,11/08/2021,TESCO STORES LTD 6498,GLOUCESTER,GBR,GL1 1SZ,REDACTED,556*********1585,5411,"GROCERY STORES, SUPERMARKETS",1.4,Pound Sterling (826),1.000000000,1.4,Corporate,D,05130861224910016514793,02/09/2021,GLOUCESTER CITY COUNCIL
Gloucester City Council,23UE,Guildhall Events,GH002,Advertising & Publicity,3404,16/08/2021,12/08/2021,WWW.INSTANTPRINT.C,01709 382202,,S63 5DR,REDACTED,556*********1585,7338,QUICK-COPY AND REPRODUCTION SERVICES,71.99,Pound Sterling (826),1.000000000,71.99,Corporate,D,85481471225329995387283,02/09/2021,GLOUCESTER CITY COUNCIL
Gloucester City Council,23UE,Blackfriars,GH010,General Supplies/Materials,3025,16/08/2021,12/08/2021,AMZNMKTPLACE AMAZON.CO,AMAZON.CO.UK,GBR,EC2A 2FA,REDACTED,556*********1585,5999,MISCELLANEOUS AND RETAIL STORES,15.38,Pound Sterling (826),1.000000000,15.38,Corporate,D,85389241225132255880793,02/09/2021,GLOUCESTER CITY COUNCIL
Gloucester City Council,23UE,Blackfriars,GH010,Advertising & Publicity,3404,18/08/2021,17/08/2021,TWIA (23 EVENTS LTD),FARNHAM,LND,GU9 8JY,REDACTED,556*********1585,7372,COMPUTER AND DATA PROCESSING SERVICES,84.24,Pound Sterling (826),1.000000000,84.24,Corporate,D,85383901229000003742741,02/09/2021,GLOUCESTER CITY COUNCIL
Gloucester City Council,23UE,Guildhall Events,GH002,Events,3070,18/08/2021,17/08/2021,ASDA SUPERSTORE,GLOUCESTER,GBR,GL1 1DS,REDACTED,556*********1585,5411,"GROCERY STORES, SUPERMARKETS",88.98,Pound Sterling (826),1.000000000,88.98,Corporate,D,05130861230910065260449,02/09/2021,GLOUCESTER CITY COUNCIL
Gloucester City Council,23UE,Guildhall Bar and Caf�,GH005,Catering Provisions,3103,18/08/2021,17/08/2021,MARKS&SPENCER PLC,GLOUCESTER,GBR,GL1 1PH,REDACTED,556*********1585,5411,"GROCERY STORES, SUPERMARKETS",1.85,Pound Sterling (826),1.000000000,1.85,Corporate,D,05130861230910050408565,02/09/2021,GLOUCESTER CITY COUNCIL
Gloucester City Council,23UE,Guildhall Events,GH002,Advertising & Publicity,3404,18/08/2021,18/08/2021,MailChimp,30308,GA,30308,REDACTED,556*********1585,5818,DIGITAL GOODS - MULTI-CATEGORY,45.9,Pound Sterling (826),1.000000000,45.9,Corporate,D,15270211230000053553521,02/09/2021,GLOUCESTER CITY COUNCIL
Gloucester City Council,23UE,Guildhall Events,GH002,Events,3070,20/08/2021,19/08/2021,TESCO STORES LTD 6498,GLOUCESTER,GBR,GL1 1SZ,REDACTED,556*********1585,5411,"GROCERY STORES, SUPERMARKETS",3.7,Pound Sterling (826),1.000000000,3.7,Corporate,D,05130861232910016527183,02/09/2021,GLOUCESTER CITY COUNCIL
Gloucester City Council,23UE,Guildhall Events,GH002,Events,3070,20/08/2021,19/08/2021,TESCO STORES 6819,GLOUCESTER,GBR,GL1 1TP,REDACTED,556*********1585,5411,"GROCERY STORES, SUPERMARKETS",13.5,Pound Sterling (826),1.000000000,13.5,Corporate,D,05130861232910016587153,02/09/2021,GLOUCESTER CITY COUNCIL
Gloucester City Council,23UE,Guildhall Events,GH002,Events,3070,23/08/2021,20/08/2021,JANES PANTRY,GLOUCESTER,,GL1 1RX,REDACTED,556*********1585,5462,BAKERIES,2.25,Pound Sterling (826),1.000000000,2.25,Corporate,D,55504431232071246801347,02/09/2021,GLOUCESTER CITY COUNCIL
Gloucester City Council,23UE,Guildhall Events,GH002,Advertising & Publicity,3404,26/08/2021,25/08/2021,FACEBK *RJ29567AX2,fb.me/ads,IRL,UNKNOWN,REDACTED,556*********1585,7311,ADVERTISING SERVICES,66.76,Pound Sterling (826),1.000000000,66.76,Corporate,D,55204721237100783277314,02/09/2021,GLOUCESTER CITY COUNCIL
Gloucester City Council,23UE,Events,GH008,Events/Gloucester Goes Retro,3070/C289,26/08/2021,25/08/2021,WWW.SOLOPRESS.COM,SOUTHEND-ON-S,,SS2 5QF,REDACTED,556*********1585,2741,MISCELLANEOUS PUBLISHING & PRINTING,62.91,Pound Sterling (826),1.000000000,62.91,Corporate,D,55541961238465000639932,02/09/2021,GLOUCESTER CITY COUNCIL
Gloucester City Council,23UE,Blackfriars,GH010,Cleaning Services & Materials,1500,26/08/2021,25/08/2021,BOOKER LIMITED GLOUCES,GLOUCESTER,GBR,GL4 3RT,REDACTED,556*********1585,5811,CATERERS,47.3,Pound Sterling (826),1.000000000,47.3,Corporate,D,55184221237532380470774,02/09/2021,GLOUCESTER CITY COUNCIL
Gloucester City Council,23UE,Blackfriars,GH010,Catering Provisions,3103,27/08/2021,25/08/2021,SAINSBURYS S/MKTS,BARNWOOD,,GL43RT,REDACTED,556*********1585,5411,"GROCERY STORES, SUPERMARKETS",5.36,Pound Sterling (826),1.000000000,5.36,Corporate,D,85481471238333424448752,02/09/2021,GLOUCESTER CITY COUNCIL
Gloucester City Council,23UE,Guildhall Events,GH002,Advertising & Publicity,3404,30/08/2021,29/08/2021,FACEBK *DB5CS6P9X2,fb.me/ads,IRL,UNKNOWN,REDACTED,556*********1585,7311,ADVERTISING SERVICES,100,Pound Sterling (826),1.000000000,100,Corporate,D,55204721241200154377877,02/09/2021,GLOUCESTER CITY COUNCIL
Gloucester City Council,23UE,Blackfriars,GH010,Catering Provisions,3103,01/09/2021,31/08/2021,B&M 298 - GLOUCESTER,GLOUCESTER,GBR,GL1 2DH,REDACTED,556*********1585,5399,MISCELLANEOUS GENERAL MERCHANDISE STORES,11.05,Pound Sterling (826),1.000000000,11.05,Corporate,D,05272471244910035217081,02/09/2021,GLOUCESTER CITY COUNCIL
Gloucester City Council,23UE,Blackfriars,GH010,Catering Provisions,3103,01/09/2021,31/08/2021,TESCO STORES 6819,GLOUCESTER,GBR,GL1 1TP,REDACTED,556*********1585,5411,"GROCERY STORES, SUPERMARKETS",1.15,Pound Sterling (826),1.000000000,1.15,Corporate,D,05130861244910015941530,02/09/2021,GLOUCESTER CITY COUNCIL
Gloucester City Council,23UE,Guildhall Bar and Caf�,GH005,Catering Provisions,3103,01/09/2021,31/08/2021,TESCO STORES 6819,GLOUCESTER,GBR,GL1 1TP,REDACTED,556*********1585,5411,"GROCERY STORES, SUPERMARKETS",2.3,Pound Sterling (826),1.000000000,2.3,Corporate,D,05130861244910016140116,02/09/2021,GLOUCESTER CITY COUNCIL
Gloucester City Council,23UE,Blackfriars,GH010,Advertising & Publicity,3404,02/09/2021,01/09/2021,ROCK MY WEDDING,LONDON,LND,SW13 9JJ,REDACTED,556*********1585,8699,MEMBERSHIP ORGANIZATIONS NOT ELSEWHERE CLASSIFIED,12,Pound Sterling (826),1.000000000,12,Corporate,D,85383901244000004691682,02/09/2021,GLOUCESTER CITY COUNCIL
Gloucester City Council,23UE,The Arbor,CC001,Catering Provisions,3103,03/08/2021,02/08/2021,LIDL GB GLOUCESTER,GLOUCESTER,GBR,GL4 4LP,REDACTED,556*********0923,5411,"GROCERY STORES, SUPERMARKETS",8.23,Pound Sterling (826),1.000000000,8.23,Corporate,D,05130861215910047267354,02/09/2021,GLOUCESTER CITY COUNCIL
Gloucester City Council,23UE,Crematorium,CC003,Cleaning Services & Materials,1500,04/08/2021,03/08/2021,B&M 448 - CONEY HILL,CONEY HILL,GBR,GL4 3BY,REDACTED,556*********0923,5399,MISCELLANEOUS GENERAL MERCHANDISE STORES,14.47,Pound Sterling (826),1.000000000,14.47,Corporate,D,05272461216910013192608,02/09/2021,GLOUCESTER CITY COUNCIL
Gloucester City Council,23UE,Crematorium,CC003,Equipment and Furniture ,3001,06/08/2021,05/08/2021,PROPER JOB - GLOUCESTE,GLOUCESTER,GBR,GL4 3EA,REDACTED,556*********0923,5251,HARDWARE STORES,91.34,Pound Sterling (826),1.000000000,91.34,Corporate,D,05272461218910003449438,02/09/2021,GLOUCESTER CITY COUNCIL
Gloucester City Council,23UE,The Arbor,CC001,Catering Provisions,3103,16/08/2021,14/08/2021,ALDI STORES,GLOUCESTER,,GL3 3SL,REDACTED,556*********0923,5411,"GROCERY STORES, SUPERMARKETS",11.95,Pound Sterling (826),1.000000000,11.95,Corporate,D,85481471227330666751730,02/09/2021,GLOUCESTER CITY COUNCIL
Gloucester City Council,23UE,Crematorium,CC003,Laundry Costs,3060,17/08/2021,15/08/2021,PRIMARK,CHELTENHAM,,GL50 3HD,REDACTED,556*********0923,5651,FAMILY CLOTHING STORES,12,Pound Sterling (826),1.000000000,12,Corporate,D,55541961228907001241301,02/09/2021,GLOUCESTER CITY COUNCIL
Gloucester City Council,23UE,Cemeteries,CC004,Road Fund License,2101,01/09/2021,31/08/2021,ADVANTIS CREDIT - MOTO,STOKE-ON-TREN,,ST4 7RY,REDACTED,556*********0923,9222,FINES,80,Pound Sterling (826),1.000000000,80,Corporate,D,55541961244465000667588,02/09/2021,GLOUCESTER CITY COUNCIL
Gloucester City Council,23UE,Crematorium,CC003,General Supplies/Materials,3025,02/09/2021,31/08/2021,SCREWFIX DIR LTD,GLOUC1027,,GL43SJ,REDACTED,556*********0923,5211,LUMBER AND BUILDING MATERIALS STORES,16.99,Pound Sterling (826),1.000000000,16.99,Corporate,D,85481471244335096872427,02/09/2021,GLOUCESTER CITY COUNCIL
Gloucester City Council,23UE,Cemeteries,CC004,Road Fund License,2101,02/09/2021,31/08/2021,DVLA VEHICLE TAX,0300 1234321,,SA6 7JL,REDACTED,556*********0923,9311,TAX PAYMENTS,153.75,Pound Sterling (826),1.000000000,153.75,Corporate,D,85481471244335137140990,02/09/2021,GLOUCESTER CITY COUNCIL
Gloucester City Council,23UE,Planning Policy,PL004,"ICT Software, Licences & Support",3521,20/08/2021,19/08/2021,ZOOM.US 888-799-9666,SAN JOSE,CA,95113,REDACTED,556*********4450,4814,"TELECOMMUNICATION SERV.INCLUD. LOCAL/L.DIST. CALLS,CR CARDCALLS",11.99,Pound Sterling (826),1.000000000,11.99,Corporate,D,82711161231000008649948,02/09/2021,GLOUCESTER CITY COUNCIL
Gloucester City Council,23UE,Gloucester Guildhall,GH001,Road Fund License,2101,04/08/2021,03/08/2021,DVLA VEHICLE TAX,SWANSEA,,SA7 0EE,REDACTED,556*********9780,9311,TAX PAYMENTS,172.5,Pound Sterling (826),1.000000000,172.5,Corporate,D,85481471216327724062384,02/09/2021,GLOUCESTER CITY COUNCIL
Gloucester City Council,23UE,Museum of Gloucester,MU002,Public Transport - Staff,2402,10/08/2021,08/08/2021,Trainline.COM,London,GBR,EC1N 2TD,REDACTED,556*********9780,4112,PASSENGER RAILWAYS,39.53,Pound Sterling (826),1.000000000,39.53,Corporate,D,85130081221131168867737,02/09/2021,GLOUCESTER CITY COUNCIL
Gloucester City Council,23UE,Guildhall Events,GH002,Advertising & Publicity,3404,12/08/2021,11/08/2021,SQUARESPACE INC.,NEW YORK,NY,10014,REDACTED,556*********9780,7372,COMPUTER AND DATA PROCESSING SERVICES,180,Pound Sterling (826),1.000000000,180,Corporate,D,82305091223000015440845,02/09/2021,GLOUCESTER CITY COUNCIL
Gloucester City Council,23UE,Events,GH008,Events/Gloucester Goes Retro,3070/C289,19/08/2021,18/08/2021,TOWN AND CITY GIFT CAR,PERTH,,PH1 5UT,REDACTED,556*********9780,5947,"GIFT, CARD, NOVELTY, AND SOUVENIR SHOPS",362.49,Pound Sterling (826),1.000000000,362.49,Corporate,D,85481471230331504622211,02/09/2021,GLOUCESTER CITY COUNCIL
Gloucester City Council,23UE,Guildhall Events,GH002,Advertising & Publicity,3404,23/08/2021,20/08/2021,FACEBK *5UDNB6B9X2,fb.me/ads,IRL,UNKNOWN,REDACTED,556*********9780,7311,ADVERTISING SERVICES,390.07,Pound Sterling (826),1.000000000,390.07,Corporate,D,55204721232200944634349,02/09/2021,GLOUCESTER CITY COUNCIL
Gloucester City Council,23UE,Museum of Gloucester,MU002,External Training Course Fees,0550,27/08/2021,26/08/2021,EB *HOW TO PLAN AND DE,801-413-7200,IRL,DUBLIN 8,REDACTED,556*********9780,7399,BUSINESS SERVICES NOT ELSEWHERE CLASSIFIED,50,Pound Sterling (826),1.000000000,50,Corporate,D,15424521239000168804122,02/09/2021,GLOUCESTER CITY COUNCIL
Gloucester City Council,23UE,Housing Services,HS001,Temporary Accommodation,1304,04/08/2021,03/08/2021,WWW.ROOMSBOOKED.COM,INTERNET,GBR,GL50 4BA,REDACTED,556*********3914,7011,"LODGING, HOTELS, MOTELS, RESORTS",936.25,Pound Sterling (826),1.000000000,936.25,Corporate,D,05272461216910004182337,02/09/2021,GLOUCESTER CITY COUNCIL
Gloucester City Council,23UE,Housing Services,HS001,Temporary Accommodation,1304,05/08/2021,04/08/2021,TRAVELODGE GB0000,THAME,,OX9 3AT,REDACTED,556*********3914,3615,TRAVELODGE,73.99,Pound Sterling (826),1.000000000,73.99,Corporate,D,55504431216298179582095,02/09/2021,GLOUCESTER CITY COUNCIL
Gloucester City Council,23UE,Housing Services,HS001,Temporary Accommodation,1304,05/08/2021,04/08/2021,TRAVELODGE GB0000,THAME,,OX9 3AT,REDACTED,556*********3914,3615,TRAVELODGE,554.93,Pound Sterling (826),1.000000000,554.93,Corporate,D,55504431216298179479060,02/09/2021,GLOUCESTER CITY COUNCIL
Gloucester City Council,23UE,Housing Services,HS001,Temporary Accommodation,1304,05/08/2021,04/08/2021,TRAVELODGE GB0000,THAME,,OX9 3AT,REDACTED,556*********3914,3615,TRAVELODGE,86.99,Pound Sterling (826),1.000000000,86.99,Corporate,D,55504431216298179508959,02/09/2021,GLOUCESTER CITY COUNCIL
Gloucester City Council,23UE,Housing Services,HS001,Temporary Accommodation,1304,05/08/2021,04/08/2021,TRAVELODGE GB0000,THAME,,OX9 3AT,REDACTED,556*********3914,3615,TRAVELODGE,164.98,Pound Sterling (826),1.000000000,164.98,Corporate,D,55504431216298179482312,02/09/2021,GLOUCESTER CITY COUNCIL
Gloucester City Council,23UE,Housing Services,HS001,Temporary Accommodation,1304,05/08/2021,04/08/2021,WWW.ROOMSBOOKED.COM,INTERNET,GBR,GL50 4BA,REDACTED,556*********3914,7011,"LODGING, HOTELS, MOTELS, RESORTS",564,Pound Sterling (826),1.000000000,564,Corporate,D,05272461217910004115039,02/09/2021,GLOUCESTER CITY COUNCIL
Gloucester City Council,23UE,Housing Services,HS001,Temporary Accommodation,1304,05/08/2021,04/08/2021,WWW.ROOMSBOOKED.COM,INTERNET,GBR,GL50 4BA,REDACTED,556*********3914,7011,"LODGING, HOTELS, MOTELS, RESORTS",477,Pound Sterling (826),1.000000000,477,Corporate,D,05272461217910004115195,02/09/2021,GLOUCESTER CITY COUNCIL
Gloucester City Council,23UE,Housing Services,HS001,Temporary Accommodation,1304,06/08/2021,05/08/2021,TRAVELODGE GB0000,THAME,,OX9 3AT,REDACTED,556*********3914,3615,TRAVELODGE,462.93,Pound Sterling (826),1.000000000,462.93,Corporate,D,55504431217298187014882,02/09/2021,GLOUCESTER CITY COUNCIL
Gloucester City Council,23UE,Housing Services,HS001,Temporary Accommodation,1304,06/08/2021,03/08/2021,TRAVELODGE GB0809,GLOUCESTER,,GL1 5SF,REDACTED,556*********3914,3615,TRAVELODGE,184.48,Pound Sterling (826),1.000000000,184.48,Corporate,D,55504431217110231284439,02/09/2021,GLOUCESTER CITY COUNCIL
Gloucester City Council,23UE,Housing Services,HS001,Temporary Accommodation,1304,06/08/2021,03/08/2021,TRAVELODGE GB0821,CHELTENHAM,,GL51 6TA,REDACTED,556*********3914,3615,TRAVELODGE,249.97,Pound Sterling (826),1.000000000,249.97,Corporate,D,55504431217110231644491,02/09/2021,GLOUCESTER CITY COUNCIL
Gloucester City Council,23UE,Housing Services,HS001,Temporary Accommodation,1304,06/08/2021,03/08/2021,TRAVELODGE GB0821,CHELTENHAM,,GL51 6TA,REDACTED,556*********3914,3615,TRAVELODGE,89.49,Pound Sterling (826),1.000000000,89.49,Corporate,D,55504431217110231644483,02/09/2021,GLOUCESTER CITY COUNCIL
Gloucester City Council,23UE,Housing Services,HS001,Temporary Accommodation,1304,06/08/2021,05/08/2021,WWW.ROOMSBOOKED.COM,INTERNET,GBR,GL50 4BA,REDACTED,556*********3914,7011,"LODGING, HOTELS, MOTELS, RESORTS",906,Pound Sterling (826),1.000000000,906,Corporate,D,05272461218910004211050,02/09/2021,GLOUCESTER CITY COUNCIL
Gloucester City Council,23UE,Housing Services,HS001,Temporary Accommodation,1304,09/08/2021,06/08/2021,CITRUS HOTEL CHELTENHA,CHELTENHAM,GBR,GL50 1XZ,REDACTED,556*********3914,7011,"LODGING, HOTELS, MOTELS, RESORTS",207.4,Pound Sterling (826),1.000000000,207.4,Corporate,D,15122621219000431250050,02/09/2021,GLOUCESTER CITY COUNCIL
Gloucester City Council,23UE,Housing Services,HS001,Temporary Accommodation,1304,09/08/2021,06/08/2021,TRAVELODGE GB0000,THAME,,OX9 3AT,REDACTED,556*********3914,3615,TRAVELODGE,455.96,Pound Sterling (826),1.000000000,455.96,Corporate,D,55504431218298194415527,02/09/2021,GLOUCESTER CITY COUNCIL
Gloucester City Council,23UE,Housing Services,HS001,Temporary Accommodation,1304,09/08/2021,04/08/2021,TRAVELODGE GB0809,GLOUCESTER,,GL1 5SF,REDACTED,556*********3914,3615,TRAVELODGE,76.49,Pound Sterling (826),1.000000000,76.49,Corporate,D,55504431218110255407220,02/09/2021,GLOUCESTER CITY COUNCIL
Gloucester City Council,23UE,Housing Services,HS001,Temporary Accommodation,1304,09/08/2021,06/08/2021,TRAVELODGE GB0821,CHELTENHAM,,GL51 6TA,REDACTED,556*********3914,3615,TRAVELODGE,496.94,Pound Sterling (826),1.000000000,496.94,Corporate,D,55504431220110298563654,02/09/2021,GLOUCESTER CITY COUNCIL
Gloucester City Council,23UE,Housing Services,HS001,Temporary Accommodation,1304,10/08/2021,09/08/2021,TRAVELODGE GB0000,THAME,,OX9 3AT,REDACTED,556*********3914,3615,TRAVELODGE,528.93,Pound Sterling (826),1.000000000,528.93,Corporate,D,55504431221298114901593,02/09/2021,GLOUCESTER CITY COUNCIL
Gloucester City Council,23UE,Housing Services,HS001,Temporary Accommodation,1304,10/08/2021,09/08/2021,TRAVELODGE GB0000,THAME,,OX9 3AT,REDACTED,556*********3914,3615,TRAVELODGE,528.93,Pound Sterling (826),1.000000000,528.93,Corporate,D,55504431221298114806230,02/09/2021,GLOUCESTER CITY COUNCIL
Gloucester City Council,23UE,Housing Services,HS001,Temporary Accommodation,1304,11/08/2021,10/08/2021,TRAVELODGE GB0000,THAME,,OX9 3AT,REDACTED,556*********3914,3615,TRAVELODGE,184.98,Pound Sterling (826),1.000000000,184.98,Corporate,D,55504431222298122119708,02/09/2021,GLOUCESTER CITY COUNCIL
Gloucester City Council,23UE,Housing Services,HS001,Temporary Accommodation,1304,11/08/2021,10/08/2021,TRAVELODGE GB0000,THAME,,OX9 3AT,REDACTED,556*********3914,3615,TRAVELODGE,794.93,Pound Sterling (826),1.000000000,794.93,Corporate,D,55504431222298122112869,02/09/2021,GLOUCESTER CITY COUNCIL
Gloucester City Council,23UE,Housing Services,HS001,Temporary Accommodation,1304,11/08/2021,10/08/2021,TRAVELODGE GB0000,THAME,,OX9 3AT,REDACTED,556*********3914,3615,TRAVELODGE,155.98,Pound Sterling (826),1.000000000,155.98,Corporate,D,55504431222298122226115,02/09/2021,GLOUCESTER CITY COUNCIL
Gloucester City Council,23UE,Housing Services,HS001,Temporary Accommodation,1304,11/08/2021,10/08/2021,TRAVELODGE GB0000,THAME,,OX9 3AT,REDACTED,556*********3914,3615,TRAVELODGE,626.93,Pound Sterling (826),1.000000000,626.93,Corporate,D,55504431222298122125424,02/09/2021,GLOUCESTER CITY COUNCIL
Gloucester City Council,23UE,Housing Services,HS001,Temporary Accommodation,1304,11/08/2021,10/08/2021,WWW.ROOMSBOOKED.COM,INTERNET,GBR,GL50 4BA,REDACTED,556*********3914,7011,"LODGING, HOTELS, MOTELS, RESORTS",59,Pound Sterling (826),1.000000000,59,Corporate,D,05272461223910004326984,02/09/2021,GLOUCESTER CITY COUNCIL
Gloucester City Council,23UE,Housing Services,HS001,Temporary Accommodation,1304,12/08/2021,11/08/2021,TRAVELODGE GB0000,THAME,,OX9 3AT,REDACTED,556*********3914,3615,TRAVELODGE,85.99,Pound Sterling (826),1.000000000,85.99,Corporate,D,55504431223298129624485,02/09/2021,GLOUCESTER CITY COUNCIL
Gloucester City Council,23UE,Housing Services,HS001,Temporary Accommodation,1304,12/08/2021,11/08/2021,TRAVELODGE GB0000,THAME,,OX9 3AT,REDACTED,556*********3914,3615,TRAVELODGE,548.93,Pound Sterling (826),1.000000000,548.93,Corporate,D,55504431223298129536911,02/09/2021,GLOUCESTER CITY COUNCIL
Gloucester City Council,23UE,Housing Services,HS001,Temporary Accommodation,1304,12/08/2021,11/08/2021,WWW.ROOMSBOOKED.COM,INTERNET,GBR,GL50 4BA,REDACTED,556*********3914,7011,"LODGING, HOTELS, MOTELS, RESORTS",415,Pound Sterling (826),1.000000000,415,Corporate,D,05272461224910004071654,02/09/2021,GLOUCESTER CITY COUNCIL
Gloucester City Council,23UE,Housing Services,HS001,Temporary Accommodation,1304,12/08/2021,11/08/2021,HOLIDAY INN EXPRESS,CHELTENHAM,GBR,GL50 4AP,REDACTED,556*********3914,7011,"LODGING, HOTELS, MOTELS, RESORTS",139,Pound Sterling (826),1.000000000,139,Corporate,D,05272471224910012000660,02/09/2021,GLOUCESTER CITY COUNCIL
Gloucester City Council,23UE,Housing Services,HS001,Temporary Accommodation,1304,12/08/2021,11/08/2021,HIE GLOUCESTER SOUTH,GLOUCESTER,GBR,GL2 2AB,REDACTED,556*********3914,3501,HOLIDAY INNS,121.99,Pound Sterling (826),1.000000000,121.99,Corporate,D,55184221223552243231961,02/09/2021,GLOUCESTER CITY COUNCIL
Gloucester City Council,23UE,Housing Services,HS001,Temporary Accommodation,1304,13/08/2021,12/08/2021,IBIS GLOUCESTER,GLOUCESTER,GBR,GL43DG,REDACTED,556*********3914,3533,HOTEL IBIS,85,Pound Sterling (826),1.000000000,85,Corporate,D,55184221224552251401166,02/09/2021,GLOUCESTER CITY COUNCIL
Gloucester City Council,23UE,Housing Services,HS001,Temporary Accommodation,1304,16/08/2021,12/08/2021,TRAVELODGE GB0809,GLOUCESTER,,GL1 5SF,REDACTED,556*********3914,3615,TRAVELODGE,0.55,Pound Sterling (826),1.000000000,0.55,Corporate,D,55504431226110234313234,02/09/2021,GLOUCESTER CITY COUNCIL
Gloucester City Council,23UE,Housing Services,HS001,Temporary Accommodation,1304,17/08/2021,16/08/2021,WWW.ROOMSBOOKED.COM,INTERNET,GBR,GL50 4BA,REDACTED,556*********3914,7011,"LODGING, HOTELS, MOTELS, RESORTS",583,Pound Sterling (826),1.000000000,583,Corporate,D,05272461229910004188917,02/09/2021,GLOUCESTER CITY COUNCIL
Gloucester City Council,23UE,Housing Services,HS001,Temporary Accommodation,1304,17/08/2021,16/08/2021,HIE GLOUCESTER SOUTH,GLOUCESTER,GBR,GL2 2AB,REDACTED,556*********3914,3501,HOLIDAY INNS,136.99,Pound Sterling (826),1.000000000,136.99,Corporate,D,55184221228542296552111,02/09/2021,GLOUCESTER CITY COUNCIL
Gloucester City Council,23UE,Housing Services,HS001,Temporary Accommodation,1304,17/08/2021,16/08/2021,HIE GLOUCESTER SOUTH,GLOUCESTER,GBR,GL2 2AB,REDACTED,556*********3914,3501,HOLIDAY INNS,136.99,Pound Sterling (826),1.000000000,136.99,Corporate,D,55184221228542296552350,02/09/2021,GLOUCESTER CITY COUNCIL
Gloucester City Council,23UE,Housing Services,HS001,Temporary Accommodation,1304,18/08/2021,16/08/2021,HOLIDAY INN CHELTE,GLOUCESTER,,GL4 3RX,REDACTED,556*********3914,7011,"LODGING, HOTELS, MOTELS, RESORTS",123.84,Pound Sterling (826),1.000000000,123.84,Corporate,D,85481471229331134494281,02/09/2021,GLOUCESTER CITY COUNCIL
Gloucester City Council,23UE,Housing Services,HS001,Temporary Accommodation,1304,18/08/2021,16/08/2021,PREMIER INN 44537080,CHELTENHAM,,GL50 4FA,REDACTED,556*********3914,3811,PREMIER INN,115,Pound Sterling (826),1.000000000,115,Corporate,D,55541961230529000352024,02/09/2021,GLOUCESTER CITY COUNCIL
Gloucester City Council,23UE,Housing Services,HS001,Temporary Accommodation,1304,18/08/2021,16/08/2021,PREMIER INN 44537080,CHELTENHAM,,GL50 4FA,REDACTED,556*********3914,3811,PREMIER INN,115,Pound Sterling (826),1.000000000,115,Corporate,D,55541961230529000352073,02/09/2021,GLOUCESTER CITY COUNCIL
Gloucester City Council,23UE,Housing Services,HS001,Temporary Accommodation,1304,18/08/2021,17/08/2021,WWW.ROOMSBOOKED.COM,INTERNET,GBR,GL50 4BA,REDACTED,556*********3914,7011,"LODGING, HOTELS, MOTELS, RESORTS",1164.8,Pound Sterling (826),1.000000000,1164.8,Corporate,D,05272461230910004193393,02/09/2021,GLOUCESTER CITY COUNCIL
Gloucester City Council,23UE,Housing Services,HS001,Temporary Accommodation,1304,18/08/2021,17/08/2021,WWW.ROOMSBOOKED.COM,INTERNET,GBR,GL50 4BA,REDACTED,556*********3914,7011,"LODGING, HOTELS, MOTELS, RESORTS",838,Pound Sterling (826),1.000000000,838,Corporate,D,05272461230910004194060,02/09/2021,GLOUCESTER CITY COUNCIL
Gloucester City Council,23UE,Housing Services,HS001,Temporary Accommodation,1304,19/08/2021,18/08/2021,WWW.ROOMSBOOKED.COM,INTERNET,GBR,GL50 4BA,REDACTED,556*********3914,7011,"LODGING, HOTELS, MOTELS, RESORTS",250,Pound Sterling (826),1.000000000,250,Corporate,D,05272461231910004133091,02/09/2021,GLOUCESTER CITY COUNCIL
Gloucester City Council,23UE,Housing Services,HS001,Temporary Accommodation,1304,20/08/2021,17/08/2021,TRAVELODGE GB0809,GLOUCESTER,,GL1 5SF,REDACTED,556*********3914,3615,TRAVELODGE,537.87,Pound Sterling (826),1.000000000,537.87,Corporate,D,55504431231110238608798,02/09/2021,GLOUCESTER CITY COUNCIL
Gloucester City Council,23UE,Housing Services,HS001,Temporary Accommodation,1304,23/08/2021,20/08/2021,HOLIDAY INN CHELTE,GLOUCESTER,,GL4 3RX,REDACTED,556*********3914,7011,"LODGING, HOTELS, MOTELS, RESORTS",140,Pound Sterling (826),1.000000000,140,Corporate,D,85481471233332151276233,02/09/2021,GLOUCESTER CITY COUNCIL
Gloucester City Council,23UE,Housing Services,HS001,Temporary Accommodation,1304,23/08/2021,20/08/2021,HOLIDAY INN CHELTE,GLOUCESTER,,GL4 3RX,REDACTED,556*********3914,7011,"LODGING, HOTELS, MOTELS, RESORTS",140,Pound Sterling (826),1.000000000,140,Corporate,D,85481471233332151276324,02/09/2021,GLOUCESTER CITY COUNCIL
Gloucester City Council,23UE,Housing Services,HS001,Temporary Accommodation,1304,23/08/2021,20/08/2021,HOLIDAY INN CHELTE,GLOUCESTER,,GL4 3RX,REDACTED,556*********3914,7011,"LODGING, HOTELS, MOTELS, RESORTS",827,Pound Sterling (826),1.000000000,827,Corporate,D,85481471233332151276548,02/09/2021,GLOUCESTER CITY COUNCIL
Gloucester City Council,23UE,Housing Services,HS001,Temporary Accommodation,1304,23/08/2021,20/08/2021,HOLIDAY INN CHELTE,GLOUCESTER,,GL4 3RX,REDACTED,556*********3914,7011,"LODGING, HOTELS, MOTELS, RESORTS",838,Pound Sterling (826),1.000000000,838,Corporate,D,85481471233332151276563,02/09/2021,GLOUCESTER CITY COUNCIL
Gloucester City Council,23UE,Housing Services,HS001,Temporary Accommodation,1304,23/08/2021,20/08/2021,HOLIDAY INN CHELTE,GLOUCESTER,,GL4 3RX,REDACTED,556*********3914,7011,"LODGING, HOTELS, MOTELS, RESORTS",818,Pound Sterling (826),1.000000000,818,Corporate,D,85481471233332151276571,02/09/2021,GLOUCESTER CITY COUNCIL
Gloucester City Council,23UE,Housing Services,HS001,Temporary Accommodation,1304,23/08/2021,20/08/2021,HOLIDAY INN CHELTE,GLOUCESTER,,GL4 3RX,REDACTED,556*********3914,7011,"LODGING, HOTELS, MOTELS, RESORTS",679,Pound Sterling (826),1.000000000,679,Corporate,D,85481471233332151276589,02/09/2021,GLOUCESTER CITY COUNCIL
Gloucester City Council,23UE,Housing Services,HS001,Temporary Accommodation,1304,23/08/2021,20/08/2021,HOLIDAY INN CHELTE,GLOUCESTER,,GL4 3RX,REDACTED,556*********3914,7011,"LODGING, HOTELS, MOTELS, RESORTS",812,Pound Sterling (826),1.000000000,812,Corporate,D,85481471233332151276621,02/09/2021,GLOUCESTER CITY COUNCIL
Gloucester City Council,23UE,Housing Services,HS001,Temporary Accommodation,1304,23/08/2021,20/08/2021,HOLIDAY INN CHELTE,GLOUCESTER,,GL4 3RX,REDACTED,556*********3914,7011,"LODGING, HOTELS, MOTELS, RESORTS",838,Pound Sterling (826),1.000000000,838,Corporate,D,85481471233332151276639,02/09/2021,GLOUCESTER CITY COUNCIL
Gloucester City Council,23UE,Housing Services,HS001,Temporary Accommodation,1304,24/08/2021,23/08/2021,HOLIDAY INN EXPRESS,CHELTENHAM,GBR,GL50 4AP,REDACTED,556*********3914,7011,"LODGING, HOTELS, MOTELS, RESORTS",537,Pound Sterling (826),1.000000000,537,Corporate,D,05272471236910012000450,02/09/2021,GLOUCESTER CITY COUNCIL
Gloucester City Council,23UE,Housing Services,HS001,Temporary Accommodation,1304,25/08/2021,23/08/2021,HOLIDAY INN CHELTE,GLOUCESTER,,GL4 3RX,REDACTED,556*********3914,7011,"LODGING, HOTELS, MOTELS, RESORTS",149,Pound Sterling (826),1.000000000,149,Corporate,D,85481471236332976041280,02/09/2021,GLOUCESTER CITY COUNCIL
Gloucester City Council,23UE,Housing Services,HS001,Temporary Accommodation,1304,25/08/2021,24/08/2021,WWW.ROOMSBOOKED.COM,INTERNET,GBR,GL50 4BA,REDACTED,556*********3914,7011,"LODGING, HOTELS, MOTELS, RESORTS",855,Pound Sterling (826),1.000000000,855,Corporate,D,05272461237910004073390,02/09/2021,GLOUCESTER CITY COUNCIL
Gloucester City Council,23UE,Housing Services,HS001,Temporary Accommodation,1304,25/08/2021,24/08/2021,WWW.ROOMSBOOKED.COM,INTERNET,GBR,GL50 4BA,REDACTED,556*********3914,7011,"LODGING, HOTELS, MOTELS, RESORTS",648,Pound Sterling (826),1.000000000,648,Corporate,D,05272461237910004073408,02/09/2021,GLOUCESTER CITY COUNCIL
Gloucester City Council,23UE,Housing Services,HS001,Temporary Accommodation,1304,25/08/2021,24/08/2021,WWW.ROOMSBOOKED.COM,INTERNET,GBR,GL50 4BA,REDACTED,556*********3914,7011,"LODGING, HOTELS, MOTELS, RESORTS",855,Pound Sterling (826),1.000000000,855,Corporate,D,05272461237910004242714,02/09/2021,GLOUCESTER CITY COUNCIL
Gloucester City Council,23UE,Housing Services,HS001,Temporary Accommodation,1304,26/08/2021,25/08/2021,TRAVELODGE GB0000,THAME,,OX9 3AT,REDACTED,556*********3914,3615,TRAVELODGE,391.95,Pound Sterling (826),1.000000000,391.95,Corporate,D,55504431237298130757559,02/09/2021,GLOUCESTER CITY COUNCIL
Gloucester City Council,23UE,Housing Services,HS001,Temporary Accommodation,1304,26/08/2021,25/08/2021,WWW.ROOMSBOOKED.COM,INTERNET,GBR,GL50 4BA,REDACTED,556*********3914,7011,"LODGING, HOTELS, MOTELS, RESORTS",621,Pound Sterling (826),1.000000000,621,Corporate,D,05272461238910004276455,02/09/2021,GLOUCESTER CITY COUNCIL
Gloucester City Council,23UE,Housing Services,HS001,Temporary Accommodation,1304,26/08/2021,25/08/2021,WWW.ROOMSBOOKED.COM,INTERNET,GBR,GL50 4BA,REDACTED,556*********3914,7011,"LODGING, HOTELS, MOTELS, RESORTS",277.2,Pound Sterling (826),1.000000000,277.2,Corporate,D,05272461238910004301949,02/09/2021,GLOUCESTER CITY COUNCIL
Gloucester City Council,23UE,Housing Services,HS001,Temporary Accommodation,1304,27/08/2021,25/08/2021,HOLIDAY INN CHELTE,GLOUCESTER,,GL4 3RX,REDACTED,556*********3914,7011,"LODGING, HOTELS, MOTELS, RESORTS",219,Pound Sterling (826),1.000000000,219,Corporate,D,85481471238333521149261,02/09/2021,GLOUCESTER CITY COUNCIL
Gloucester City Council,23UE,Housing Services,HS001,Temporary Accommodation,1304,27/08/2021,26/08/2021,HIE GLOUCESTER SOUTH,GLOUCESTER,GBR,GL2 2AB,REDACTED,556*********3914,3501,HOLIDAY INNS,155.99,Pound Sterling (826),1.000000000,155.99,Corporate,D,55184221238552390083481,02/09/2021,GLOUCESTER CITY COUNCIL
Gloucester City Council,23UE,Housing Services,HS001,Temporary Accommodation,1304,30/08/2021,27/08/2021,IBIS GLOUCESTER,GLOUCESTER,GBR,GL43DG,REDACTED,556*********3914,3533,HOTEL IBIS,1092,Pound Sterling (826),1.000000000,1092,Corporate,D,55184221240592405716788,02/09/2021,GLOUCESTER CITY COUNCIL
Gloucester City Council,23UE,Housing Services,HS001,Temporary Accommodation,1304,01/09/2021,31/08/2021,TRAVELODGE GB0000,THAME,,OX9 3AT,REDACTED,556*********3914,3615,TRAVELODGE,527.93,Pound Sterling (826),1.000000000,527.93,Corporate,D,55504431243298175042240,02/09/2021,GLOUCESTER CITY COUNCIL
Gloucester City Council,23UE,Housing Services,HS001,Temporary Accommodation,1304,01/09/2021,31/08/2021,TRAVELODGE GB0000,THAME,,OX9 3AT,REDACTED,556*********3914,3615,TRAVELODGE,118.98,Pound Sterling (826),1.000000000,118.98,Corporate,D,55504431243298175001972,02/09/2021,GLOUCESTER CITY COUNCIL
Gloucester City Council,23UE,Housing Services,HS001,Temporary Accommodation,1304,01/09/2021,31/08/2021,TRAVELODGE GB0000,THAME,,OX9 3AT,REDACTED,556*********3914,3615,TRAVELODGE,459.93,Pound Sterling (826),1.000000000,459.93,Corporate,D,55504431243298175009488,02/09/2021,GLOUCESTER CITY COUNCIL
Gloucester City Council,23UE,Housing Services,HS001,Temporary Accommodation,1304,01/09/2021,31/08/2021,WWW.ROOMSBOOKED.COM,INTERNET,GBR,GL50 4BA,REDACTED,556*********3914,7011,"LODGING, HOTELS, MOTELS, RESORTS",65,Pound Sterling (826),1.000000000,65,Corporate,D,05272461244910004071353,02/09/2021,GLOUCESTER CITY COUNCIL
Gloucester City Council,23UE,Housing Services,HS001,Temporary Accommodation,1304,02/09/2021,01/09/2021,TRAVELODGE GB0000,THAME,,OX9 3AT,REDACTED,556*********3914,3615,TRAVELODGE,77.99,Pound Sterling (826),1.000000000,77.99,Corporate,D,55504431244298183169901,02/09/2021,GLOUCESTER CITY COUNCIL
Gloucester City Council,23UE,Housing Services,HS001,Temporary Accommodation,1304,02/09/2021,01/09/2021,TRAVELODGE GB0000,THAME,,OX9 3AT,REDACTED,556*********3914,3615,TRAVELODGE,82.99,Pound Sterling (826),1.000000000,82.99,Corporate,D,55504431244298183190840,02/09/2021,GLOUCESTER CITY COUNCIL
Gloucester City Council,23UE,Housing Services,HS001,Temporary Accommodation,1304,02/09/2021,01/09/2021,TRAVELODGE GB0000,THAME,,OX9 3AT,REDACTED,556*********3914,3615,TRAVELODGE,389.94,Pound Sterling (826),1.000000000,389.94,Corporate,D,55504431244298183274545,02/09/2021,GLOUCESTER CITY COUNCIL
Gloucester City Council,23UE,Housing Services,HS001,Temporary Accommodation,1304,02/09/2021,01/09/2021,TRAVELODGE GB0000,THAME,,OX9 3AT,REDACTED,556*********3914,3615,TRAVELODGE,158.98,Pound Sterling (826),1.000000000,158.98,Corporate,D,55504431244298183280070,02/09/2021,GLOUCESTER CITY COUNCIL
Gloucester City Council,23UE,Housing Services,HS001,Temporary Accommodation,1304,02/09/2021,01/09/2021,TRAVELODGE GB0000,THAME,,OX9 3AT,REDACTED,556*********3914,3615,TRAVELODGE,158.98,Pound Sterling (826),1.000000000,158.98,Corporate,D,55504431244298183294600,02/09/2021,GLOUCESTER CITY COUNCIL
Gloucester City Council,23UE,Housing Services,HS001,Temporary Accommodation,1304,02/09/2021,01/09/2021,WWW.ROOMSBOOKED.COM,INTERNET,GBR,GL50 4BA,REDACTED,556*********3914,7011,"LODGING, HOTELS, MOTELS, RESORTS",64,Pound Sterling (826),1.000000000,64,Corporate,D,05272461245910004086525,02/09/2021,GLOUCESTER CITY COUNCIL
Gloucester City Council,23UE,Housing Services,HS001,Temporary Accommodation,1304,02/09/2021,01/09/2021,WWW.ROOMSBOOKED.COM,INTERNET,GBR,GL50 4BA,REDACTED,556*********3914,7011,"LODGING, HOTELS, MOTELS, RESORTS",148,Pound Sterling (826),1.000000000,148,Corporate,D,05272461245910004228168,02/09/2021,GLOUCESTER CITY COUNCIL
Gloucester City Council,23UE,Housing Services,HS001,Temporary Accommodation,1304,02/09/2021,01/09/2021,WWW.ROOMSBOOKED.COM,INTERNET,GBR,GL50 4BA,REDACTED,556*********3914,7011,"LODGING, HOTELS, MOTELS, RESORTS",576,Pound Sterling (826),1.000000000,576,Corporate,D,05272461245910004228176,02/09/2021,GLOUCESTER CITY COUNCIL
Gloucester City Council,23UE,Destination Marketing,TI001,Advertising & Publicity,3404,03/08/2021,02/08/2021,EMAIL BLASTER,NORTHANTS,GBR,NN12 8TA,REDACTED,556*********5716,5045,"COMPUTERS,COMPUTER PERIPHERAL EQUIPMENT, SOFTWARE",15.59,Pound Sterling (826),1.000000000,15.59,Corporate,D,55184221214542150869045,02/09/2021,GLOUCESTER CITY COUNCIL
Gloucester City Council,23UE,Destination Marketing,TI001,Professional Membership & Subscriptions,3403,05/08/2021,04/08/2021,"SPROUT SOCIAL, INC",8668783231,IL,60603,REDACTED,556*********5716,5045,"COMPUTERS,COMPUTER PERIPHERAL EQUIPMENT, SOFTWARE",99,US Dollar (840),1.347672202,73.46,Corporate,D,55429501216715575651721,02/09/2021,GLOUCESTER CITY COUNCIL
Gloucester City Council,23UE,Destination Marketing,TI001,Advertising & Publicity,3404,11/08/2021,10/08/2021,FACEBK BMZB77PCP2,fb.me/ads,IRL,2,REDACTED,556*********5716,7311,ADVERTISING SERVICES,200,Pound Sterling (826),1.000000000,200,Corporate,D,15265671222000095217442,02/09/2021,GLOUCESTER CITY COUNCIL
Gloucester City Council,23UE,Destination Marketing,TI001,Advertising & Publicity,3404,12/08/2021,11/08/2021,FACEBK UKH8P5F242,fb.me/ads,IRL,2,REDACTED,556*********5716,7311,ADVERTISING SERVICES,20,Pound Sterling (826),1.000000000,20,Corporate,D,15265671223000109207545,02/09/2021,GLOUCESTER CITY COUNCIL
Gloucester City Council,23UE,Destination Marketing,TI001,Advertising & Publicity,3404,13/08/2021,12/08/2021,FACEBK A9MAQ5F242,fb.me/ads,IRL,2,REDACTED,556*********5716,7311,ADVERTISING SERVICES,20,Pound Sterling (826),1.000000000,20,Corporate,D,15265671224000249207446,02/09/2021,GLOUCESTER CITY COUNCIL
Gloucester City Council,23UE,Destination Marketing,TI001,Advertising & Publicity,3404,18/08/2021,18/08/2021,FACEBK C4MPM4K242,fb.me/ads,IRL,2,REDACTED,556*********5716,7311,ADVERTISING SERVICES,25.19,Pound Sterling (826),1.000000000,25.19,Corporate,D,15265671229000442443835,02/09/2021,GLOUCESTER CITY COUNCIL
Gloucester City Council,23UE,Destination Marketing,TI001,Advertising & Publicity,3404,19/08/2021,19/08/2021,FACEBK FWF7T7TCP2,fb.me/ads,IRL,2,REDACTED,556*********5716,7311,ADVERTISING SERVICES,107.02,Pound Sterling (826),1.000000000,107.02,Corporate,D,15265671230000507053534,02/09/2021,GLOUCESTER CITY COUNCIL
Gloucester City Council,23UE,Destination Marketing,TI001,Advertising & Publicity,3404,19/08/2021,19/08/2021,FACEBK LZQS85B242,fb.me/ads,IRL,2,REDACTED,556*********5716,7311,ADVERTISING SERVICES,25,Pound Sterling (826),1.000000000,25,Corporate,D,15265671230000417716725,02/09/2021,GLOUCESTER CITY COUNCIL
Gloucester City Council,23UE,Destination Marketing,TI001,Public Transport - Staff,2402,20/08/2021,19/08/2021,Trainline.COM,London,GBR,EC1N 2TD,REDACTED,556*********5716,4112,PASSENGER RAILWAYS,155.83,Pound Sterling (826),1.000000000,155.83,Corporate,D,85130081231132738520168,02/09/2021,GLOUCESTER CITY COUNCIL
Gloucester City Council,23UE,Destination Marketing,TI001,Advertising & Publicity,3404,23/08/2021,21/08/2021,FACEBK K8S8J57242,fb.me/ads,IRL,2,REDACTED,556*********5716,7311,ADVERTISING SERVICES,40,Pound Sterling (826),1.000000000,40,Corporate,D,15265671233000327623638,02/09/2021,GLOUCESTER CITY COUNCIL
Gloucester City Council,23UE,Destination Marketing,TI001,Advertising & Publicity,3404,24/08/2021,23/08/2021,PADDLE.NET* SNAPWIDGET,"GREAT OAKLEY,",LND,NN18 8JG,REDACTED,556*********5716,5817,DIGITAL GOODS - APPLICATIONS (EXLDG GAME,5.5,Pound Sterling (826),1.000000000,5.5,Corporate,D,85383901235000001277692,02/09/2021,GLOUCESTER CITY COUNCIL
Gloucester City Council,23UE,Destination Marketing,TI001,Advertising & Publicity,3404,30/08/2021,29/08/2021,GOOGLE ADS1175876893,Dublin,IRL,8QQ7+WG,REDACTED,556*********5716,7311,ADVERTISING SERVICES,123.76,Pound Sterling (826),1.000000000,123.76,Corporate,D,15265671241004076695854,02/09/2021,GLOUCESTER CITY COUNCIL
Gloucester City Council,23UE,Destination Marketing,TI001,Advertising & Publicity,3404,01/09/2021,01/09/2021,FACEBK A8F7W43242,fb.me/ads,IRL,2,REDACTED,556*********5716,7311,ADVERTISING SERVICES,22.01,Pound Sterling (826),1.000000000,22.01,Corporate,D,15265671243000324417354,02/09/2021,GLOUCESTER CITY COUNCIL
Gloucester City Council,23UE,Destination Marketing,TI001,Advertising & Publicity,3404,02/09/2021,01/09/2021,EMAIL BLASTER,NORTHANTS,GBR,NN12 8TA,REDACTED,556*********5716,5045,"COMPUTERS,COMPUTER PERIPHERAL EQUIPMENT, SOFTWARE",15.59,Pound Sterling (826),1.000000000,15.59,Corporate,D,55184221244532459248490,02/09/2021,GLOUCESTER CITY COUNCIL
Gloucester City Council,23UE,Housing Services,HS001,Temporary Accommodation,1304,03/08/2021,02/08/2021,TRAVELODGE GB0000,THAME,,OX9 3AT,REDACTED,556*********8119,3615,TRAVELODGE,520.12,Pound Sterling (826),1.000000000,520.12,Corporate,D,55504431214298164717773,02/09/2021,GLOUCESTER CITY COUNCIL
Gloucester City Council,23UE,Housing Services,HS001,Temporary Accommodation,1304,03/08/2021,02/08/2021,WWW.ROOMSBOOKED.COM,INTERNET,GBR,GL50 4BA,REDACTED,556*********8119,7011,"LODGING, HOTELS, MOTELS, RESORTS",88,Pound Sterling (826),1.000000000,88,Corporate,D,05272461215910019027049,02/09/2021,GLOUCESTER CITY COUNCIL
Gloucester City Council,23UE,Housing Services,HS001,Temporary Accommodation,1304,05/08/2021,02/08/2021,TRAVELODGE GB0809,GLOUCESTER,,GL1 5SF,REDACTED,556*********8119,3615,TRAVELODGE,574.43,Pound Sterling (826),1.000000000,574.43,Corporate,D,55504431216110209240281,02/09/2021,GLOUCESTER CITY COUNCIL
Gloucester City Council,23UE,Housing Services,HS001,Temporary Accommodation,1304,05/08/2021,02/08/2021,TRAVELODGE GB0809,GLOUCESTER,,GL1 5SF,REDACTED,556*********8119,3615,TRAVELODGE,886.36,Pound Sterling (826),1.000000000,886.36,Corporate,D,55504431216110209240299,02/09/2021,GLOUCESTER CITY COUNCIL
Gloucester City Council,23UE,Housing Services,HS001,Temporary Accommodation,1304,05/08/2021,02/08/2021,TRAVELODGE GB0809,GLOUCESTER,,GL1 5SF,REDACTED,556*********8119,3615,TRAVELODGE,571.93,Pound Sterling (826),1.000000000,571.93,Corporate,D,55504431216110209240307,02/09/2021,GLOUCESTER CITY COUNCIL
Gloucester City Council,23UE,Housing Services,HS001,Temporary Accommodation,1304,05/08/2021,04/08/2021,CENTRAL HOTEL,CHELTENHAM,GBR,GL52 2NZ,REDACTED,556*********8119,7011,"LODGING, HOTELS, MOTELS, RESORTS",0.01,Pound Sterling (826),1.000000000,0.01,Corporate,D,05272471217910027010208,02/09/2021,GLOUCESTER CITY COUNCIL
Gloucester City Council,23UE,Housing Services,HS001,Temporary Accommodation,1304,06/08/2021,03/08/2021,TRAVELODGE GB0821,CHELTENHAM,,GL51 6TA,REDACTED,556*********8119,3615,TRAVELODGE,172.97,Pound Sterling (826),1.000000000,172.97,Corporate,D,55504431217110231644475,02/09/2021,GLOUCESTER CITY COUNCIL
Gloucester City Council,23UE,Housing Services,HS001,Temporary Accommodation,1304,24/08/2021,23/08/2021,TRAVELODGE GB0000,THAME,,OX9 3AT,REDACTED,556*********8119,3615,TRAVELODGE,75.99,Pound Sterling (826),1.000000000,75.99,Corporate,D,55504431235295360814383,02/09/2021,GLOUCESTER CITY COUNCIL
